Cogmind - Beta 13 @@@ ROGUE MODE // 2024.05.26 @ 14:41:14 Player: morimori Result: Destroyed by Piercing Trap Performance ------------- Evolutions (0) 0 Regions Visited (2) 400 Robots Destroyed (30) 150 Value Destroyed (654) 654 Prototype IDs (12) 240 Alien Tech Used (0) 0 Bonus (-45) -45 TOTAL SCORE: 1399 Bonus ------- Friendly Fire -45 Cogmind --------- Core Integrity 0/250 Matter 290/300 Energy 198/200 System Corruption 0% Temperature Cool (0) Movement Rolling (140) Ox4 Location -10/Subcaves Parts ------- > --- POWER (1) -------- Subdweller Power Source > --- PROPULSION (2) --- Wheel Wheel > --- UTILITY (2) ------ Huge Storage Unit Seismic Detector > --- WEAPON (2) ------- Medium Laser Subdweller Beam Cannon > --- INVENTORY (25) --- Ion Engine Subdweller Power Source Aluminum Leg Aluminum Leg Aluminum Leg Aluminum Leg Wheel Heat Sink Disposable Heat Sink Large Storage Unit Medium Matter Pod (100) Visual Processing Unit Sensor Array Improved Terrain Scanner Medium Laser Subdweller Laser Powered Cannon Grenade Launcher Multitool Ripper Scrap Shield Fragment (49) Scrap Shield Fragment (46) Scrap Shield Fragment (46) Peak State ------------ > --- POWER ------------ Subdweller Power Source > --- PROPULSION ------- Wheel Wheel > --- UTILITY ---------- Huge Storage Unit Seismic Detector > --- WEAPON ----------- Medium Laser Subdweller Beam Cannon > --- INVENTORY -------- Ion Engine Subdweller Power Source Aluminum Leg Aluminum Leg Aluminum Leg Aluminum Leg Wheel Wheel Heat Sink Disposable Heat Sink Large Storage Unit Medium Matter Pod Visual Processing Unit Sensor Array Improved Terrain Scanner Medium Laser Subdweller Laser Powered Cannon Grenade Launcher Multitool Ripper Scrap Shield Fragment Scrap Shield Fragment Scrap Shield Fragment [Rating: 14] Favorites ----------- Power Light Ion Engine Engine Light Ion Engine Propulsion Wheel Wheel Wheel Utility Seismic Detector Device Seismic Detector Storage Huge Storage Unit Weapon Medium Laser Energy Gun Medium Laser Energy Cannon Subdweller Beam Cannon Ballistic Gun Assault Rifle Launcher Grenade Launcher Build | -11 -10 -10 ------- Run | Yrd Mat Sub Slots Evolved . | . . . Power . | . . . Propulsion . | . . . Utility . | . . . Weapon . | . . . Parts Attached 23 | 7 7 9 Power 5 | 1 1 3 Engine 5 | 1 1 3 Core . | . . . Reactor . | . . . Propulsion 7 | 2 2 3 Treads . | . . . Leg . | . . . Wheel 7 | 2 2 3 Hover . | . . . Flight . | . . . Utility 4 | 2 2 . Device 1 | 1 . . Storage 3 | 1 2 . Processor . | . . . Hackware . | . . . Protection . | . . . Artifact . | . . . Weapon 7 | 2 2 3 Energy Gun 3 | 1 1 1 Energy Cannon 1 | . . 1 Ballistic Gun 2 | 1 . 1 Ballistic Cannon . | . . . Launcher 1 | . 1 . Special Weapon . | . . . Impact Weapon . | . . . Slashing Weapon . | . . . Piercing Weapon . | . . . Special Melee Weapon . | . . . Unidentified Prototypes . | . . . Parts Lost 6 | . . 6 Power 2 | . . 2 Propulsion 2 | . . 2 Utility . | . . . Weapon 2 | . . 2 Highest Loss Streak 5 | . . 5 To Critical Strikes . | . . . Average Slot Usage (%) 99 | . 99 99 Engine 13 | . 14 13 Wheel 27 | . 28 27 Device 14 | . 14 14 Storage 14 | . 14 14 Energy Gun 13 | . 13 14 Energy Cannon 2 | . . 6 Ballistic Gun 8 | . 9 6 Launcher 3 | . 4 . Naked Turns . | . . . Heaviest Build 96 | 13 91 96 Greatest Support 32 | 32 32 20 Greatest Overweight (x) 9 | 3 4 9 Average Overweight (x) 2 | . . 4 Largest Inventory Capacity 25 | 8 25 25 Average Capacity 19 | 7 17 25 Most Carried 25 | 8 16 25 Average Carried 16 | 6 14 20 Final Capacity 25 | 8 25 25 Final Carried 24 | 8 16 24 Class Distribution -------------------- 100% | Mutant Dominant Class ---------------- Mutant | -10/Materials Mutant | -10/Subcaves Resources | -11 -10 -10 ----------- Run | Yrd Mat Sub Matter Collected 724 | 350 268 106 Remotely . | . . . Salvage Created 970 | 169 495 306 Parts 72 | 21 32 19 Haulers Intercepted 1 | . 1 . Recyclers Shooed . | . . . Parts Field Recycled . | . . . Retrieved Matter . | . . . Parts Self-Destructed 6 | . . 6 Prevented . | . . . Kills | -11 -10 -10 ------- Run | Yrd Mat Sub Combat Hostiles Destroyed 16 | . 10 6 Guns 9 | . 6 3 Cannons 3 | . . 3 AOE 4 | . 4 . Classes Destroyed 10 | 3 5 2 Worker 3 | 2 1 . Tunneler 5 | 4 1 . Hauler 1 | . 1 . Recycler 1 | 1 . . Operator 1 | . 1 . Watcher 3 | . 3 . Swarmer 3 | . 3 . Grunt 7 | . 7 . Artisan 2 | . . 2 Subdweller 6 | . . 6 Best Kill Streak 6 | 3 6 2 Combat Bots Only 5 | . 5 2 Max Kills in Single Turn 3 | 1 3 1 Gunslinging . | . . . Exploded 2 | . 2 . Melee . | . . . Uniques/NPCs Destroyed . | . . . Combat | -11 -10 -10 -------- Run | Yrd Mat Sub Hostile Shots Fired 71 | . 34 37 Missed 21 | . 10 11 Damage Taken 972 | . 308 664 Core 268 | . 110 158 Absorbed by Shields . | . . . Regen/Repaired (Parts) 47 | . 47 . Core Remaining (%) 100 | 100 . . Volleys Fired 90 | 22 39 29 Largest 2 | 2 2 2 Hottest 130 | 70 80 130 Shots Fired 173 | 44 76 53 Gun 153 | 44 73 36 Cannon 17 | . . 17 Launcher 3 | . 3 . Special . | . . . Kinetic 70 | 22 36 12 Thermal 100 | 22 37 41 Explosive 3 | . 3 . Electromagnetic . | . . . Robot Hit Streak 14 | 4 7 14 Robot Miss Streak 4 | 2 4 2 Penetration Max . | . . . Secondary Targets . | . . . Shots Hit Robots 102 | 23 43 36 Core Hits 46 | 8 25 13 Critical Kills 1 | . 1 . Critical Parts Destroyed . | . . . Critical Strikes 4 | . 4 . Burn 3 | . 3 . Destroy 1 | . 1 . Melee Attacks . | . . . Impact . | . . . Slashing . | . . . Piercing . | . . . Sneak Attacks . | . . . Combat Hostiles . | . . . Follow-up Attacks . | . . . Damage Inflicted 1639 | 296 766 577 Guns 1209 | 296 582 331 Cannons 246 | . . 246 Explosions 184 | . 184 . Melee . | . . . Ramming . | . . . Kinetic 591 | 196 289 106 Thermal 864 | 100 293 471 Explosive 184 | . 184 . Electromagnetic . | . . . Impact . | . . . Slashing . | . . . Piercing . | . . . Highest Corruption . | . . . Average Corruption . | . . . Corruption Purged . | . . . Corruption Blocked . | . . . Overload Shots . | . . . Overflow Damage . | . . . Projectiles . | . . . Explosions . | . . . Melee . | . . . Knockbacks . | . . . Impact . | . . . Kinetic . | . . . Secondary . | . . . Self-Inflicted Damage . | . . . Shots . | . . . Rammed . | . . . Targets Rammed . | . . . Kicked . | . . . Crushed . | . . . Highest Temperature 117 | 63 117 36 Average Temperature 22 | 18 26 11 Received Heat Transfer 216 | . 144 72 Siege Activations . | . . . Robots Corrupted . | . . . Combat Hostiles . | . . . Parts Fried . | . . . Impact Corruptions . | . . . Robots Melted . | . . . Combat Hostiles . | . . . Parts Melted 3 | . 1 2 Heat Transferred 2368 | 296 1073 999 Parts Sabotaged . | . . . Parts Stolen . | . . . Parts Stripped . | . . . Power Chain Reactions . | . . . Alert | -11 -10 -10 ------- Run | Yrd Mat Sub Peak Influence 163 | 35 163 . Initial 22 | . 22 . Average 60 | 17 65 . Maximum Alert Level . | . . . Low Security (%) 100 | 100 100 . Level 1 . | . . . Level 2 . | . . . Level 3 . | . . . Level 4 . | . . . Level 5 . | . . . High Security . | . . . Max Security . | . . . Squads Dispatched 1 | . 1 . Investigation . | . . . Extermination . | . . . Reinforcement 1 | . 1 . Assault . | . . . Garrison . | . . . Intercept . | . . . Searches Triggered . | . . . Construction Impeded . | . . . Haulers Reinforced . | . . . Active Scanning Responses . | . . . Cargo Convoy Interrupts . | . . . Stealth | -11 -10 -10 --------- Run | Yrd Mat Sub Distress Signals 2 | . 2 . Communications Jammed . | . . . Distress Signals . | . . . Times Spotted 28 | . 21 7 Peak Tracking Total 3 | . 3 2 Tactical Retreats . | . . . Traps | -11 -10 -10 ------- Run | Yrd Mat Sub Traps Triggered 2 | . . 2 Indirectly . | . . . Trap Hack Attempts . | . . . Triggered . | . . . Disarmed . | . . . Reprogrammed . | . . . Reused . | . . . Traps Extracted . | . . . Installed . | . . . Triggered . | . . . Machines | -11 -10 -10 ---------- Run | Yrd Mat Sub Machines Disabled 5 | . 2 3 Max in Single Turn 1 | . 1 1 Machines Repaired . | . . . Machines Dismantled . | . . . Machines Sabotaged . | . . . Overloaded Fab Kills . | . . . Hacking | -11 -10 -10 --------- Run | Yrd Mat Sub Machines Accessed 10 | . 9 1 Terminals 7 | . 7 . Fabricators . | . . . Repair Stations 1 | . 1 . Recycling Units 1 | . 1 . Scanalyzers . | . . . Garrison Access . | . . . Total Hacks 37 | . 28 9 Successful 25 | . 16 9 Failed 12 | . 12 . Catastrophic 3 | . 3 . Database Lockouts . | . . . Manual 25 | . 25 . Terminals 24 | . 24 . Fabricators . | . . . Repair Stations 3 | . 3 . Recycling Units 1 | . 1 . Scanalyzers . | . . . Garrison Access . | . . . Terminal Hacks 16 | . 7 9 Record 8 | . . 8 Part Schematic 1 | . 1 . Robot Analysis 3 | . 3 . Prototype ID Bank 1 | . 1 . Terminal Index 1 | . 1 . Locate Traps 1 | . 1 . Derelict Proto ID Bank 1 | . . 1 Fabricator Hacks . | . . . Repair Station Hacks 2 | . 2 . Scan Component 1 | . 1 . Repair 1 | . 1 . Recycling Unit Hacks 1 | . 1 . Retrieve Components 1 | . 1 . Scanalyzer . | . . . Garrison Access Hacks . | . . . Unauthorized Hacks 6 | . 6 . Terminals 6 | . 6 . Assimilate 3 | . 3 . Botnet 2 | . 2 . Operators 1 | . 1 . Fabricators . | . . . Repair Stations . | . . . Recycling Units . | . . . Scanalyzers . | . . . Garrison Access . | . . . Data Cores Recovered . | . . . Used . | . . . Hacking Detections 7 | . 7 . Full Trace Events . | . . . Feedback Events . | . . . Feedback Blocked . | . . . Robot Schematics Acquired . | . . . Robots Built . | . . . Authchips . | . . . Time . | . . . Total Robot Build Rating . | . . . Part Schematics Acquired 1 | . 1 . Parts Built . | . . . Authchips . | . . . Time . | . . . Total Part Build Rating . | . . . Parts Repaired 1 | . 1 . Time 13 | . 13 . Parts Recycled . | . . . Recycled Matter . | . . . Retrieved Matter . | . . . Retrieved Components 7 | . 7 . Parts Scanalyzed . | . . . Part Schematics Acquired . | . . . Parts Damaged . | . . . Bothacking | -11 -10 -10 ------------ Run | Yrd Mat Sub Used RIF Installer . | . . . Robots Hacked . | . . . Non-combat . | . . . Combat . | . . . Robot Hacks Applied . | . . . Relay Couplers Released . | . . . Fabnet Peak Effective % . | . . . Robots Rewired . | . . . Allies Hacked . | . . . Hacks Repelled . | . . . Allies | -11 -10 -10 -------- Run | Yrd Mat Sub Total Allies 1 | . 1 . Largest Group 1 | . 1 1 Highest-Rated Group 10 | . 10 10 Highest-Rated Ally 10 | . 10 10 Total Orders 11 | . 6 5 STAY 6 | . 3 3 FOLLOW 5 | . 3 2 Ally Attacks . | . . . Total Damage . | . . . Kills . | . . . Allies Corrupted . | . . . Allies Melted . | . . . Intel | -11 -10 -10 ------- Run | Yrd Mat Sub Robot Analysis Total 3 | . 3 . Derelict Logs Recovered 2 | . . 2 Drone Launches . | . . . Drone Recoveries . | . . . Exploration | -11 -10 -10 ------------- Run | Yrd Mat Sub Turns Passed 3293 | 215 1895 1183 Spaces Moved 1688 | 123 805 760 Core 5 | 5 . . Treads . | . . . Legs . | . . . Wheels 1683 | 118 805 760 Hover . | . . . Flight . | . . . Fastest Speed 50 | 50 95 140 Average Speed 118 | 101 101 140 Slowest Speed 215 | 200 140 215 Overloaded Moves . | . . . Propulsion Burnouts . | . . . Robots Hopped . | . . . Cave-ins Triggered . | . . . Exploration Rate (%) 49 | 5 94 50 Regions Visited 2 Branch Regions 1 Pre-discovered Areas 1 | . . 1 Known Exits Taken . | . . . Unknown Exits Taken 2 | 1 1 . Scrap Searched 1 | . . 1 Spaces Dug . | . . . Terrain Destroyed 9 | . 9 . Melee . | . . . Projectile . | . . . AOE 9 | . 9 . Terrain Rammed . | . . . Walls Destroyed . | . . . Machines Disabled . | . . . Actions | -11 -10 -10 --------- Run | Yrd Mat Sub Total 2809 | 170 1818 821 Wait 959 | 5 943 11 Move 1686 | 122 804 760 Hop . | . . . Pick Up 36 | 11 14 11 Fast Attach 9 | 7 1 1 Attach 5 | . . 5 Detach . | . . . Swap 9 | . 6 3 Drop 15 | 3 11 1 Fire 90 | 22 39 29 Melee . | . . . Ram . | . . . Kick . | . . . Crush . | . . . Escape Stasis . | . . . Rewire . | . . . Trap . | . . . Miscellaneous . | . . . Route ------- -11/Scrapyard -10/Materials (discovered 4 exits: [*Mat x2] / [*Min] / *Sub) -10/Subcaves (discovered 1 exit: [*Mat]) History --------- Turn | Location | Event 22 | -11/Scrapyard | Discovered new exit (range 14) 216 | -11/Scrapyard | Entered Materials 312 | -10/Materials | Build established: Mutant 583 | -10/Materials | Repaired Med. Laser 1119 | -10/Materials | Discovered new exit (range 5) 1139 | -10/Materials | Discovered new exit (range 14) 1405 | -10/Materials | Discovered new exit (range 15) 2081 | -10/Materials | Discovered new exit (range 5) 2111 | -10/Materials | Entered Subcaves 2111 | -10/Subcaves | Accompanied by 1 ally 2123 | -10/Subcaves | Discovered new exit (range 15) 2146 | -10/Subcaves | Core integrity fell below 50% 2245 | -10/Subcaves | A swath of the cavern ceiling suddenly collapsed 2569 | -10/Subcaves | Learned location of Zion (-6) 2569 | -10/Subcaves | Met a Zionite searching for "candidates" 2762 | -10/Subcaves | Lost 5 parts (2p1n2w) 2785 | -10/Subcaves | Learned Materials security intel 2897 | -10/Subcaves | Visited 4L-MR0's lab 2923 | -10/Subcaves | Found Powered Cannon 3154 | -10/Subcaves | Core integrity fell below 20% 3294 | -10/Subcaves | Destroyed by Piercing Trap Last Messages --------------- 02917_ Testing Chamber breached. 02923_ Acquired Powered Cannon. 02937_ 4L-MR0 cries out in pain. 02937_ 4L-MR0 destroyed. 02937_ Machine disabled. 02941_ Acquired Multitool. 03023_ Dropped Scrap Shield Fragment. 03024_ Acquired Ripper. 03124_ Triggered Piercing Trap. 03124_ Spikes shoot up from the floor. 03124_ Critical hit (Impale). 03124_ Wheel destroyed. 03183_ Sub. Optics melted. 03183_ XS-G1G(R) destroyed. 03186_ 2K-ZHD(R) destroyed. 03192_ Subatomizers dissect the Sub. Power Source. 03294_ Triggered Piercing Trap. 03294_ Spikes shoot up from the floor. 03294_ Critical hit (Impale). Map ----- +----------------------------------------------------+ | ?????????????????????????????????????????? | | ?????????????????????????????????????????? | | ?????????????????????????????????????????? | | ?????????????????????????????????????????? | | ?????????????????????????????????????????? | | ?????????????????????????????????????????? | | ?????????????????????????????????????????? | | ?????????????????????????????????????????? | | ???????????????????##?????????????####?### | | ???????????????????# ###?????????## ### | | ???????????????????# #????????## | | ???????????????????## ##??????## | | ????????????????????## #??????# #### | | ?????????????????????# #??????### ##?# | | ????????????????????## ##???????### #?# | | ????????????????????# ####???#### #?# | | ????????????????????# ##??# ### | | ????????????????????# ##?# | | ???????????????????## ### ^ | | ???????????????##??# ## ^ ## | | ???????????????# ### ### ### | | ???????????????# ## ## #### ##? | | ???????????????# ### ### #### #? | | ???????????????# ### ###### #? | | ???????????????# ## #### ## | | ??????????????## @ ### | | ??????????????# ## | | ??????????????# ### ^ ## | | ??????????????# #### ##?## #? | | ??????????????######??## ##???# ## | | ???????????????????????# #?#### # | | ???????????????????????## ### | | ????????????????????? ### | | ?????????????????# | | ????????????????# | | ????????????????# | | ????????????????### | | ??????????????????# ######### | | ??????????????????# #????????#### ### | | ??????????????????## #???###?????## ### | | ???????????????????##???## #?????# ### | | ????????????????????????# ##????# # # | | ????????????????????????# ###??# % # | | ????????????????????????# #??## # | | ????????????????????????## #???##### # | | ?????????????????????##### ##???????# | | ???????????????????### ##??????## | | ???????????????????# ######## | | ???????????????????## | | ????????????????????# | +----------------------------------------------------+ Best States ------------- Heat Dissipation 25 Energy Generation 15 Energy Capacity 250 Matter Stores 300 Matter Capacity 300 Sight Range 16 Terrain Scan Density 10 Evasion (%) 41 Item Schematics ----------------- Hcp. Storage Unit | -10/Materials | Hacked Robot Schematics ------------------ None Fabricated ------------ Nothing Alien Tech Used ----------------- None Achievements -------------- None Challenges ------------ None Game ------ Seed TerrabombAblativeKit Manual? 0 Play Time 00:27:31 Cumulative 209.4 hours Start 2024.05.26 @ 14:11:30 End 2024.05.26 @ 14:41:14 Sessions 1 Manual Loads 0 Difficulty Rogue Special Mode None Game No. 115 Rogue 115 Adventurer 0 Explorer 0 Win Type - Total 3 Types 3/0/0/0/0/0/0/0/0 Lore% 56 Gallery% 61 Achievement% 53 Wizard Run 0 Options --------- Layout 1 ASCII 0 Keyboard 1 Movement Vi Keybinds 0 Fullscreen 2 Font 24/Smallcaps Map View 50x35 Zoom Use 0% Tactical HUD 1 Map Filters NONE Filters NONE Steam 1 RUN: a29c3f4e-97f9-4cf3-a988-525c69d122de